[Event "Titled Tuesday Blitz January 31 Early 2023"]
[White "Forgacs, Attila Jr."]
[Black "EREBUNI91"]
[WhiteFideId "773654"]
[WhiteElo "2264"]
[BlackElo "2542"]
[Result "1-0"]
[Round "07"]
[TimeControl "180+2"]
[Date "2023.01.31"]
[WhiteClock "0:00:19"]
[BlackClock "0:00:01"]

1. e4 {[%clk 0:03:00]}  c6 {[%clk 0:03:00]} 2. d4 {[%clk 0:03:00]}  d5 {[%clk 0:03:00]} 3. Nd2 {[%clk 0:02:58]}  dxe4 {[%clk 0:02:59]} 4. Nxe4 {[%clk 0:02:59]}  Nf6 {[%clk 0:02:58]} 5. Nxf6+ {[%clk 0:03:00]}  exf6 {[%clk 0:02:59]} 6. c3 {[%clk 0:02:59]}  Bd6 {[%clk 0:02:58]} 7. Bd3 {[%clk 0:02:59]}  O-O {[%clk 0:02:56]} 8. Qc2 {[%clk 0:03:00]}  Re8+ {[%clk 0:02:52]} 9. Ne2 {[%clk 0:03:00]}  h6 {[%clk 0:02:53]} 10. Be3 {[%clk 0:02:53]}  Qc7 {[%clk 0:02:53]} 11. Ng3 {[%clk 0:02:44]}  Bf4 {[%clk 0:02:48]} 12. Qd2 {[%clk 0:02:37]}  Qe7 {[%clk 0:02:47]} 13. Nf1 {[%clk 0:02:33]}  Bg4 {[%clk 0:02:26]} 14. h3 {[%clk 0:02:32]}  Bh5 {[%clk 0:02:23]} 15. g4 {[%clk 0:02:32]}  Bg6 {[%clk 0:02:21]} 16. Bxg6 {[%clk 0:02:32]}  fxg6 {[%clk 0:02:22]} 17. O-O-O {[%clk 0:02:32]}  Bd6 {[%clk 0:02:08]} 18. d5 {[%clk 0:02:27]}  c5 {[%clk 0:02:05]} 19. h4 {[%clk 0:02:12]}  Nd7 {[%clk 0:02:03]} 20. g5 {[%clk 0:02:12]}  fxg5 {[%clk 0:01:55]} 21. hxg5 {[%clk 0:02:10]}  h5 {[%clk 0:01:56]} 22. Qc2 {[%clk 0:01:58]}  Qf7 {[%clk 0:01:50]} 23. Nd2 {[%clk 0:01:54]}  Bf8 {[%clk 0:01:25]} 24. Nc4 {[%clk 0:01:41]}  b5 {[%clk 0:01:21]} 25. Na5 {[%clk 0:01:39]}  c4 {[%clk 0:01:19]} 26. Nc6 {[%clk 0:01:37]}  Bc5 {[%clk 0:01:15]} 27. Bd4 {[%clk 0:01:29]}  Bxd4 {[%clk 0:01:14]} 28. Nxd4 {[%clk 0:01:29]}  Nc5 {[%clk 0:01:06]} 29. Kb1 {[%clk 0:01:13]}  Nd3 {[%clk 0:01:04]} 30. Ne6 {[%clk 0:01:09]}  Rab8 {[%clk 0:00:31]} 31. Rxd3 {[%clk 0:01:06]}  cxd3 {[%clk 0:00:31]} 32. Qxd3 {[%clk 0:01:06]}  b4 {[%clk 0:00:15]} 33. c4 {[%clk 0:01:06]}  b3 {[%clk 0:00:13]} 34. axb3 {[%clk 0:01:04]}  a5 {[%clk 0:00:12]} 35. f4 {[%clk 0:01:01]}  Qb7 {[%clk 0:00:09]} 36. Rh3 {[%clk 0:00:56]}  Qf7 {[%clk 0:00:07]} 37. Rf3 {[%clk 0:00:48]}  Re7 {[%clk 0:00:05]} 38. Kc2 {[%clk 0:00:38]}  Reb7 {[%clk 0:00:05]} 39. Nc5 {[%clk 0:00:33]}  Rc7 {[%clk 0:00:05]} 40. Na6 {[%clk 0:00:31]}  a4 {[%clk 0:00:03]} 41. Nxb8 {[%clk 0:00:28]}  axb3+ {[%clk 0:00:04]} 42. Qxb3 {[%clk 0:00:27]}  Qxd5 {[%clk 0:00:04]} 43. c5 {[%clk 0:00:20]}  Rxc5+ {[%clk 0:00:01]} 44. Rc3 {[%clk 0:00:19]} 1-0


[Site "https://www.chess.com"]

[Event "Titled Tuesday Blitz January 31 Early 2023"]
[White "Kim, Sergey"]
[Black "Battlecruiser_Operational"]
[WhiteFideId "13700570"]
[WhiteElo "2295"]
[BlackElo "2422"]
[Result "1-0"]
[Round "07"]
[TimeControl "180+2"]
[Date "2023.01.31"]
[WhiteClock "0:00:33"]
[BlackClock "0:00:17"]

1. d4 {[%clk 0:02:55]}  e6 {[%clk 0:02:57]} 2. c4 {[%clk 0:02:55]}  f5 {[%clk 0:02:56]} 3. g3 {[%clk 0:02:54]}  Nf6 {[%clk 0:02:56]} 4. Bg2 {[%clk 0:02:54]}  d5 {[%clk 0:02:52]} 5. Qc2 {[%clk 0:02:52]}  c6 {[%clk 0:02:51]} 6. Nh3 {[%clk 0:02:51]}  Be7 {[%clk 0:02:45]} 7. O-O {[%clk 0:02:51]}  O-O {[%clk 0:02:45]} 8. Nd2 {[%clk 0:02:51]}  Qe8 {[%clk 0:02:40]} 9. Nf4 {[%clk 0:02:49]}  g5 {[%clk 0:02:35]} 10. Nd3 {[%clk 0:02:49]}  Nbd7 {[%clk 0:02:33]} 11. Nf3 {[%clk 0:02:46]}  Ne4 {[%clk 0:02:31]} 12. Nfe5 {[%clk 0:02:41]}  Qh5 {[%clk 0:02:22]} 13. f3 {[%clk 0:02:32]}  Nd6 {[%clk 0:02:21]} 14. b3 {[%clk 0:02:20]}  Nf6 {[%clk 0:02:11]} 15. Nc5 {[%clk 0:01:54]}  h6 {[%clk 0:02:01]} 16. Bd2 {[%clk 0:01:35]}  Re8 {[%clk 0:01:43]} 17. Rae1 {[%clk 0:01:28]}  b6 {[%clk 0:01:40]} 18. Ncd3 {[%clk 0:01:25]}  Bb7 {[%clk 0:01:40]} 19. c5 {[%clk 0:01:20]}  Nb5 {[%clk 0:01:30]} 20. e3 {[%clk 0:01:20]}  Rec8 {[%clk 0:00:43]} 21. a4 {[%clk 0:01:17]}  Nc7 {[%clk 0:00:43]} 22. b4 {[%clk 0:01:12]}  b5 {[%clk 0:00:36]} 23. Nf2 {[%clk 0:00:59]}  Bf8 {[%clk 0:00:20]} 24. g4 {[%clk 0:00:38]}  fxg4 {[%clk 0:00:18]} 25. Nfxg4 {[%clk 0:00:37]}  Nxg4 {[%clk 0:00:18]} 26. fxg4 {[%clk 0:00:37]}  Qe8 {[%clk 0:00:17]} 27. Rf7 {[%clk 0:00:33]}  Bg7 {[%clk 0:00:17]} 28. Qg6 {[%clk 0:00:33]} 1-0


[Site "https://www.chess.com"]

[Event "Titled Tuesday Blitz January 31 Early 2023"]
[White "Andreev, Konstantin"]
[Black "Najdin, Danil"]
[WhiteFideId "24239305"]
[BlackFideId "4172426"]
[WhiteElo "2195"]
[BlackElo "2235"]
[Result "0-1"]
[Round "07"]
[TimeControl "180+2"]
[Date "2023.01.31"]
[WhiteClock "0:00:13"]
[BlackClock "0:00:09"]

1. e4 {[%clk 0:03:00]}  g6 {[%clk 0:02:59]} 2. d4 {[%clk 0:03:00]}  c6 {[%clk 0:02:59]} 3. Nc3 {[%clk 0:03:00]}  d5 {[%clk 0:02:59]} 4. e5 {[%clk 0:03:00]}  Bg7 {[%clk 0:02:57]} 5. f4 {[%clk 0:02:56]}  h5 {[%clk 0:02:57]} 6. Be3 {[%clk 0:02:53]}  Nh6 {[%clk 0:02:57]} 7. h3 {[%clk 0:02:52]}  f6 {[%clk 0:02:28]} 8. Bd3 {[%clk 0:02:46]}  Bf5 {[%clk 0:02:26]} 9. Nf3 {[%clk 0:02:42]}  Nd7 {[%clk 0:02:07]} 10. Nh4 {[%clk 0:02:40]}  Kf7 {[%clk 0:01:59]} 11. Nxf5 {[%clk 0:02:36]}  Nxf5 {[%clk 0:01:58]} 12. Bf2 {[%clk 0:02:29]}  h4 {[%clk 0:01:58]} 13. Qg4 {[%clk 0:02:28]}  e6 {[%clk 0:01:57]} 14. O-O-O {[%clk 0:02:26]}  Bh6 {[%clk 0:01:49]} 15. Kb1 {[%clk 0:02:24]}  fxe5 {[%clk 0:01:49]} 16. dxe5 {[%clk 0:02:10]}  Bf8 {[%clk 0:01:37]} 17. Rhe1 {[%clk 0:02:03]}  Bc5 {[%clk 0:01:36]} 18. Ne4 {[%clk 0:01:21]}  dxe4 {[%clk 0:01:25]} 19. Bc4 {[%clk 0:01:20]}  Qe7 {[%clk 0:00:57]} 20. Rxd7 {[%clk 0:01:12]}  Qxd7 {[%clk 0:00:58]} 21. Bxc5 {[%clk 0:01:12]}  Rad8 {[%clk 0:00:53]} 22. a4 {[%clk 0:01:05]}  b6 {[%clk 0:00:49]} 23. Bb4 {[%clk 0:00:57]}  b5 {[%clk 0:00:46]} 24. axb5 {[%clk 0:00:55]}  cxb5 {[%clk 0:00:47]} 25. Bb3 {[%clk 0:00:55]}  e3 {[%clk 0:00:46]} 26. Ba5 {[%clk 0:00:53]}  Rc8 {[%clk 0:00:45]} 27. Rd1 {[%clk 0:00:53]}  Qc6 {[%clk 0:00:41]} 28. c3 {[%clk 0:00:41]}  Rb8 {[%clk 0:00:34]} 29. Rd6 {[%clk 0:00:39]}  Qe4+ {[%clk 0:00:26]} 30. Ka2 {[%clk 0:00:35]}  Nxd6 {[%clk 0:00:19]} 31. Qxe6+ {[%clk 0:00:32]}  Kg7 {[%clk 0:00:19]} 32. Qe7+ {[%clk 0:00:28]}  Nf7 {[%clk 0:00:13]} 33. Qxf7+ {[%clk 0:00:06]}  Kh6 {[%clk 0:00:13]} 34. Qe7 {[%clk 0:00:06]}  Qxf4 {[%clk 0:00:11]} 35. c4 {[%clk 0:00:05]}  bxc4 {[%clk 0:00:10]} 36. Bc2 {[%clk 0:00:05]}  Rhe8 {[%clk 0:00:04]} 37. Qd6 {[%clk 0:00:04]}  Qg5 {[%clk 0:00:03]} 38. Bc3 {[%clk 0:00:04]}  Rb6 {[%clk 0:00:03]} 39. Qc7 {[%clk 0:00:04]}  e2 {[%clk 0:00:03]} 40. Qf7 {[%clk 0:00:04]}  e1=Q {[%clk 0:00:02]} 41. Bxe1 {[%clk 0:00:04]}  Rxe5 {[%clk 0:00:03]} 42. Bc3 {[%clk 0:00:04]}  Ra5+ {[%clk 0:00:03]} 43. Bxa5 {[%clk 0:00:04]}  Qxa5+ {[%clk 0:00:04]} 44. Kb1 {[%clk 0:00:04]}  Qe1+ {[%clk 0:00:04]} 45. Ka2 {[%clk 0:00:05]}  Qe6 {[%clk 0:00:05]} 46. Qf8+ {[%clk 0:00:05]}  Kg5 {[%clk 0:00:05]} 47. Qf3 {[%clk 0:00:05]}  Qe5 {[%clk 0:00:03]} 48. Qa3 {[%clk 0:00:02]}  Qe6 {[%clk 0:00:01]} 49. Qf3 {[%clk 0:00:02]}  Ra6+ {[%clk 0:00:01]} 50. Kb1 {[%clk 0:00:02]}  Qe1+ {[%clk 0:00:02]} 51. Bd1 {[%clk 0:00:02]}  Rd6 {[%clk 0:00:02]} 52. Kc2 {[%clk 0:00:02]}  Rxd1 {[%clk 0:00:01]} 53. Qxd1 {[%clk 0:00:03]}  Qxd1+ {[%clk 0:00:01]} 54. Kxd1 {[%clk 0:00:04]}  Kf4 {[%clk 0:00:02]} 55. Kc2 {[%clk 0:00:05]}  Kg3 {[%clk 0:00:02]} 56. Kc3 {[%clk 0:00:06]}  Kxg2 {[%clk 0:00:03]} 57. Kxc4 {[%clk 0:00:07]}  Kxh3 {[%clk 0:00:04]} 58. Kb5 {[%clk 0:00:07]}  Kg3 {[%clk 0:00:04]} 59. Ka6 {[%clk 0:00:08]}  h3 {[%clk 0:00:05]} 60. Kxa7 {[%clk 0:00:09]}  h2 {[%clk 0:00:06]} 61. b4 {[%clk 0:00:10]}  h1=Q {[%clk 0:00:07]} 62. b5 {[%clk 0:00:11]}  Qd5 {[%clk 0:00:07]} 63. b6 {[%clk 0:00:12]}  Qb5 {[%clk 0:00:07]} 64. b7 {[%clk 0:00:13]}  Qxb7+ {[%clk 0:00:08]} 65. Kxb7 {[%clk 0:00:13]}  g5 {[%clk 0:00:09]} 0-1


[Site "https://www.chess.com"]

[Event "Titled Tuesday Blitz January 31 Early 2023"]
[White "Gureeva, Dina"]
[Black "Sharapov, Evgeny"]
[WhiteFideId "4170695"]
[BlackFideId "14103133"]
[WhiteElo "2178"]
[BlackElo "2375"]
[Result "1/2-1/2"]
[Round "07"]
[TimeControl "180+2"]
[Date "2023.01.31"]
[WhiteClock "0:00:21"]
[BlackClock "0:00:23"]

1. d4 {[%clk 0:03:00]}  Nf6 {[%clk 0:02:59]} 2. c4 {[%clk 0:03:00]}  e6 {[%clk 0:02:59]} 3. Nf3 {[%clk 0:03:00]}  Bb4+ {[%clk 0:02:58]} 4. Bd2 {[%clk 0:03:00]}  c5 {[%clk 0:02:58]} 5. Bxb4 {[%clk 0:02:59]}  cxb4 {[%clk 0:02:58]} 6. Nbd2 {[%clk 0:02:59]}  O-O {[%clk 0:02:57]} 7. g3 {[%clk 0:02:59]}  d6 {[%clk 0:02:58]} 8. Bg2 {[%clk 0:02:59]}  Nc6 {[%clk 0:02:58]} 9. O-O {[%clk 0:02:59]}  e5 {[%clk 0:02:58]} 10. d5 {[%clk 0:02:58]}  Na5 {[%clk 0:02:55]} 11. e4 {[%clk 0:02:50]}  Nd7 {[%clk 0:02:54]} 12. Qe2 {[%clk 0:02:47]}  b6 {[%clk 0:02:53]} 13. Nb3 {[%clk 0:02:40]}  Nxb3 {[%clk 0:02:51]} 14. axb3 {[%clk 0:02:41]}  a5 {[%clk 0:02:50]} 15. Ne1 {[%clk 0:02:34]}  Nc5 {[%clk 0:02:49]} 16. Qc2 {[%clk 0:02:32]}  f5 {[%clk 0:02:48]} 17. f3 {[%clk 0:02:11]}  fxe4 {[%clk 0:02:43]} 18. fxe4 {[%clk 0:02:11]}  Rxf1+ {[%clk 0:02:42]} 19. Kxf1 {[%clk 0:02:11]}  Bg4 {[%clk 0:02:39]} 20. Nd3 {[%clk 0:02:09]}  Nxd3 {[%clk 0:02:35]} 21. Qxd3 {[%clk 0:02:09]}  Qc7 {[%clk 0:02:30]} 22. Kg1 {[%clk 0:02:07]}  Qc5+ {[%clk 0:02:29]} 23. Kh1 {[%clk 0:02:06]}  Rf8 {[%clk 0:02:29]} 24. h3 {[%clk 0:01:55]}  Bd7 {[%clk 0:02:28]} 25. Rf1 {[%clk 0:01:54]}  Rxf1+ {[%clk 0:02:27]} 26. Qxf1 {[%clk 0:01:55]}  Qe3 {[%clk 0:02:22]} 27. Qg1 {[%clk 0:01:33]}  Qxg1+ {[%clk 0:01:52]} 28. Kxg1 {[%clk 0:01:34]}  a4 {[%clk 0:01:47]} 29. bxa4 {[%clk 0:01:33]}  Bxa4 {[%clk 0:01:47]} 30. Kf2 {[%clk 0:01:30]}  Bb3 {[%clk 0:01:43]} 31. Bf1 {[%clk 0:01:30]}  Kf7 {[%clk 0:01:37]} 32. Ke3 {[%clk 0:01:30]}  Kf6 {[%clk 0:01:34]} 33. Kd3 {[%clk 0:01:25]}  Kg5 {[%clk 0:01:28]} 34. Be2 {[%clk 0:01:24]}  h6 {[%clk 0:01:24]} 35. Kd2 {[%clk 0:01:21]}  Kf6 {[%clk 0:01:16]} 36. Kd3 {[%clk 0:01:16]}  Ke7 {[%clk 0:01:15]} 37. Kd2 {[%clk 0:01:04]}  Kd8 {[%clk 0:01:14]} 38. Kd3 {[%clk 0:01:01]}  Kc7 {[%clk 0:01:14]} 39. Kd2 {[%clk 0:01:01]}  Kb7 {[%clk 0:01:11]} 40. Bf1 {[%clk 0:00:53]}  Ba4 {[%clk 0:01:08]} 41. Be2 {[%clk 0:00:52]}  Bd7 {[%clk 0:01:07]} 42. h4 {[%clk 0:00:52]}  Bh3 {[%clk 0:00:58]} 43. Kc2 {[%clk 0:00:51]}  Bg2 {[%clk 0:00:54]} 44. Bd3 {[%clk 0:00:50]}  b5 {[%clk 0:00:40]} 45. Kb3 {[%clk 0:00:45]}  bxc4+ {[%clk 0:00:39]} 46. Kxc4 {[%clk 0:00:45]}  Kb6 {[%clk 0:00:38]} 47. Kxb4 {[%clk 0:00:46]}  Bf3 {[%clk 0:00:37]} 48. Kc4 {[%clk 0:00:43]}  Bg2 {[%clk 0:00:36]} 49. b4 {[%clk 0:00:43]}  Bf3 {[%clk 0:00:36]} 50. Kc3 {[%clk 0:00:43]}  Bg2 {[%clk 0:00:30]} 51. Kd2 {[%clk 0:00:43]}  Bh3 {[%clk 0:00:27]} 52. Ke3 {[%clk 0:00:43]}  Bd7 {[%clk 0:00:27]} 53. Kf3 {[%clk 0:00:41]}  Bc8 {[%clk 0:00:25]} 54. Ke3 {[%clk 0:00:33]}  Bd7 {[%clk 0:00:25]} 55. Kd2 {[%clk 0:00:25]}  Bc8 {[%clk 0:00:25]} 56. Kc3 {[%clk 0:00:25]}  Bd7 {[%clk 0:00:25]} 57. Be2 {[%clk 0:00:25]}  Bc8 {[%clk 0:00:25]} 58. g4 {[%clk 0:00:25]}  g5 {[%clk 0:00:24]} 59. hxg5 {[%clk 0:00:25]}  hxg5 {[%clk 0:00:24]} 60. Kb3 {[%clk 0:00:22]}  Bd7 {[%clk 0:00:23]} 61. Kc3 {[%clk 0:00:21]} 1/2-1/2


[Site "https://www.chess.com"]

[Event "Titled Tuesday Blitz January 31 Early 2023"]
[White "Hoffmann, Asa"]
[Black "Kalogeris, Ioannis"]
[WhiteFideId "2001470"]
[BlackFideId "4239563"]
[WhiteElo "2185"]
[BlackElo "2423"]
[Result "0-1"]
[Round "07"]
[TimeControl "180+2"]
[Date "2023.01.31"]
[WhiteClock "0:00:04"]
[BlackClock "0:00:19"]

1. d4 {[%clk 0:02:50]}  Nf6 {[%clk 0:02:58]} 2. Bg5 {[%clk 0:02:47]}  Ne4 {[%clk 0:02:57]} 3. Bf4 {[%clk 0:02:44]}  d5 {[%clk 0:02:58]} 4. f3 {[%clk 0:02:43]}  Nd6 {[%clk 0:02:58]} 5. Nc3 {[%clk 0:02:43]}  c6 {[%clk 0:02:56]} 6. e4 {[%clk 0:02:43]}  e6 {[%clk 0:02:48]} 7. Bd3 {[%clk 0:02:42]}  Nd7 {[%clk 0:02:46]} 8. Qd2 {[%clk 0:02:41]}  Be7 {[%clk 0:02:44]} 9. Nge2 {[%clk 0:02:41]}  Nc4 {[%clk 0:02:36]} 10. Bxc4 {[%clk 0:02:40]}  dxc4 {[%clk 0:02:37]} 11. O-O-O {[%clk 0:02:39]}  Qa5 {[%clk 0:02:34]} 12. Kb1 {[%clk 0:02:37]}  b5 {[%clk 0:02:26]} 13. Ka1 {[%clk 0:02:03]}  b4 {[%clk 0:02:24]} 14. Nb1 {[%clk 0:02:02]}  O-O {[%clk 0:02:19]} 15. d5 {[%clk 0:01:57]}  cxd5 {[%clk 0:02:17]} 16. exd5 {[%clk 0:01:57]}  exd5 {[%clk 0:02:03]} 17. Qxd5 {[%clk 0:01:56]}  Qxd5 {[%clk 0:02:03]} 18. Rxd5 {[%clk 0:01:56]}  Nb6 {[%clk 0:02:03]} 19. Rdd1 {[%clk 0:01:39]}  Bf6 {[%clk 0:02:01]} 20. c3 {[%clk 0:01:38]}  a5 {[%clk 0:01:45]} 21. Nd4 {[%clk 0:01:27]}  Bd7 {[%clk 0:01:25]} 22. Rhe1 {[%clk 0:01:20]}  Rfc8 {[%clk 0:01:11]} 23. g4 {[%clk 0:01:16]}  h6 {[%clk 0:01:08]} 24. Be5 {[%clk 0:01:13]}  Bh4 {[%clk 0:01:01]} 25. Re2 {[%clk 0:01:12]}  Na4 {[%clk 0:00:57]} 26. Bg3 {[%clk 0:01:02]}  Bf6 {[%clk 0:00:55]} 27. Be5 {[%clk 0:01:02]}  Bh4 {[%clk 0:00:53]} 28. Bg3 {[%clk 0:01:01]}  Bd8 {[%clk 0:00:52]} 29. Nf5 {[%clk 0:00:54]}  Bxf5 {[%clk 0:00:52]} 30. gxf5 {[%clk 0:00:54]}  Bf6 {[%clk 0:00:51]} 31. Be5 {[%clk 0:00:53]}  Re8 {[%clk 0:00:51]} 32. Rde1 {[%clk 0:00:53]}  Bh4 {[%clk 0:00:50]} 33. Bg3 {[%clk 0:00:52]}  Rxe2 {[%clk 0:00:49]} 34. Rxe2 {[%clk 0:00:52]}  Bf6 {[%clk 0:00:50]} 35. Be5 {[%clk 0:00:52]}  Re8 {[%clk 0:00:49]} 36. f4 {[%clk 0:00:52]}  Rd8 {[%clk 0:00:35]} 37. Bxf6 {[%clk 0:00:46]}  gxf6 {[%clk 0:00:36]} 38. Re1 {[%clk 0:00:44]}  Rd3 {[%clk 0:00:35]} 39. cxb4 {[%clk 0:00:34]}  axb4 {[%clk 0:00:34]} 40. Rc1 {[%clk 0:00:31]}  Rd4 {[%clk 0:00:35]} 41. b3 {[%clk 0:00:31]}  Nb6 {[%clk 0:00:31]} 42. bxc4 {[%clk 0:00:28]}  Nxc4 {[%clk 0:00:32]} 43. Rf1 {[%clk 0:00:21]}  Kf8 {[%clk 0:00:32]} 44. a4 {[%clk 0:00:19]}  bxa3 {[%clk 0:00:32]} 45. Ka2 {[%clk 0:00:19]}  Rd3 {[%clk 0:00:32]} 46. Rc1 {[%clk 0:00:17]}  Nd6 {[%clk 0:00:31]} 47. Nxa3 {[%clk 0:00:16]}  Nxf5 {[%clk 0:00:30]} 48. Rc5 {[%clk 0:00:15]}  Nd4 {[%clk 0:00:28]} 49. Rh5 {[%clk 0:00:14]}  Rd2+ {[%clk 0:00:28]} 50. Kb1 {[%clk 0:00:12]}  Kg7 {[%clk 0:00:28]} 51. Nc4 {[%clk 0:00:11]}  Rf2 {[%clk 0:00:26]} 52. Rh4 {[%clk 0:00:10]}  Nf5 {[%clk 0:00:23]} 53. Rh3 {[%clk 0:00:08]}  Rxf4 {[%clk 0:00:23]} 54. Ne3 {[%clk 0:00:08]}  Nxe3 {[%clk 0:00:23]} 55. Rxe3 {[%clk 0:00:08]}  Rf1+ {[%clk 0:00:23]} 56. Kc2 {[%clk 0:00:07]}  Rf2+ {[%clk 0:00:24]} 57. Kd3 {[%clk 0:00:08]}  Rxh2 {[%clk 0:00:25]} 58. Rg3+ {[%clk 0:00:07]}  Kf8 {[%clk 0:00:24]} 59. Ke4 {[%clk 0:00:07]}  Rh5 {[%clk 0:00:24]} 60. Kf4 {[%clk 0:00:07]}  Rg5 {[%clk 0:00:24]} 61. Rh3 {[%clk 0:00:06]}  Kg7 {[%clk 0:00:24]} 62. Rh1 {[%clk 0:00:06]}  Kg6 {[%clk 0:00:21]} 63. Rh2 {[%clk 0:00:06]}  f5 {[%clk 0:00:21]} 64. Rh1 {[%clk 0:00:06]}  Rg4+ {[%clk 0:00:22]} 65. Kf3 {[%clk 0:00:06]}  Kg5 {[%clk 0:00:22]} 66. Rh2 {[%clk 0:00:06]}  h5 {[%clk 0:00:21]} 67. Rh1 {[%clk 0:00:06]}  f4 {[%clk 0:00:20]} 68. Rh2 {[%clk 0:00:06]}  Rg3+ {[%clk 0:00:21]} 69. Kf2 {[%clk 0:00:06]}  Kg4 {[%clk 0:00:21]} 70. Rh1 {[%clk 0:00:06]}  f5 {[%clk 0:00:20]} 71. Rh2 {[%clk 0:00:05]}  h4 {[%clk 0:00:18]} 72. Rh1 {[%clk 0:00:05]}  f3 {[%clk 0:00:19]} 73. Rh2 {[%clk 0:00:05]}  Rg2+ {[%clk 0:00:18]} 74. Rxg2+ {[%clk 0:00:05]}  fxg2 {[%clk 0:00:19]} 75. Kxg2 {[%clk 0:00:05]}  f4 {[%clk 0:00:18]} 76. Kh2 {[%clk 0:00:04]}  Kf3 {[%clk 0:00:18]} 77. Kh3 {[%clk 0:00:04]}  Ke2 {[%clk 0:00:19]} 0-1


[Site "https://www.chess.com"]

[Event "Titled Tuesday Blitz January 31 Early 2023"]
[White "Slade, Theodore"]
[Black "Abdilkhair, Abilmansur"]
[WhiteFideId "426547"]
[BlackFideId "13716417"]
[WhiteElo "1995"]
[BlackElo "2268"]
[Result "1/2-1/2"]
[Round "07"]
[TimeControl "180+2"]
[Date "2023.01.31"]
[WhiteClock "0:00:08"]
[BlackClock "0:00:06"]

1. d4 {[%clk 0:03:00]}  Nf6 {[%clk 0:02:57]} 2. c4 {[%clk 0:03:01]}  e6 {[%clk 0:02:57]} 3. g3 {[%clk 0:03:01]}  d5 {[%clk 0:02:57]} 4. Bg2 {[%clk 0:03:02]}  Be7 {[%clk 0:02:57]} 5. Nf3 {[%clk 0:03:02]}  O-O {[%clk 0:02:57]} 6. O-O {[%clk 0:03:03]}  c6 {[%clk 0:02:57]} 7. Qc2 {[%clk 0:03:03]}  b6 {[%clk 0:02:53]} 8. b3 {[%clk 0:03:03]}  Bb7 {[%clk 0:02:51]} 9. Bb2 {[%clk 0:03:03]}  Nbd7 {[%clk 0:02:51]} 10. Nc3 {[%clk 0:03:04]}  Rc8 {[%clk 0:02:51]} 11. e4 {[%clk 0:03:04]}  c5 {[%clk 0:02:48]} 12. exd5 {[%clk 0:03:01]}  exd5 {[%clk 0:02:48]} 13. Rfd1 {[%clk 0:03:01]}  dxc4 {[%clk 0:02:36]} 14. d5 {[%clk 0:02:59]}  cxb3 {[%clk 0:02:29]} 15. axb3 {[%clk 0:02:59]}  Ne8 {[%clk 0:01:59]} 16. Rxa7 {[%clk 0:02:58]}  Nd6 {[%clk 0:01:59]} 17. Ne4 {[%clk 0:02:48]}  Ra8 {[%clk 0:01:50]} 18. Rxa8 {[%clk 0:02:42]}  Qxa8 {[%clk 0:01:51]} 19. Nxd6 {[%clk 0:02:14]}  Bxd6 {[%clk 0:01:52]} 20. Ng5 {[%clk 0:02:15]}  g6 {[%clk 0:01:40]} 21. Qc3 {[%clk 0:01:39]}  Be5 {[%clk 0:01:39]} 22. Qd2 {[%clk 0:01:34]}  Qa2 {[%clk 0:01:25]} 23. Bxe5 {[%clk 0:01:28]}  Qxd2 {[%clk 0:01:24]} 24. Rxd2 {[%clk 0:01:29]}  Nxe5 {[%clk 0:01:25]} 25. f4 {[%clk 0:01:15]}  Ng4 {[%clk 0:01:23]} 26. d6 {[%clk 0:01:03]}  Bxg2 {[%clk 0:01:12]} 27. Kxg2 {[%clk 0:01:04]}  Rd8 {[%clk 0:01:10]} 28. Kf3 {[%clk 0:01:02]}  h5 {[%clk 0:01:02]} 29. Ne4 {[%clk 0:00:53]}  Kg7 {[%clk 0:00:57]} 30. h3 {[%clk 0:00:34]}  Nf6 {[%clk 0:00:57]} 31. Nc3 {[%clk 0:00:32]}  Ne8 {[%clk 0:00:50]} 32. Nb5 {[%clk 0:00:31]}  Rd7 {[%clk 0:00:47]} 33. Ke4 {[%clk 0:00:30]}  Kf6 {[%clk 0:00:45]} 34. Kd5 {[%clk 0:00:30]}  Ng7 {[%clk 0:00:35]} 35. Kc6 {[%clk 0:00:30]}  Rd8 {[%clk 0:00:34]} 36. d7 {[%clk 0:00:30]}  Ne6 {[%clk 0:00:24]} 37. Kxb6 {[%clk 0:00:29]}  Ke7 {[%clk 0:00:21]} 38. Kc6 {[%clk 0:00:27]}  Rb8 {[%clk 0:00:14]} 39. Rf2 {[%clk 0:00:13]}  Nd8+ {[%clk 0:00:11]} 40. Kxc5 {[%clk 0:00:12]}  Kxd7 {[%clk 0:00:12]} 41. Rd2+ {[%clk 0:00:12]}  Ke7 {[%clk 0:00:12]} 42. Re2+ {[%clk 0:00:12]}  Ne6+ {[%clk 0:00:12]} 43. Kc4 {[%clk 0:00:11]}  Rc8+ {[%clk 0:00:12]} 44. Kb4 {[%clk 0:00:11]}  Rc1 {[%clk 0:00:10]} 45. g4 {[%clk 0:00:10]}  Kf6 {[%clk 0:00:09]} 46. gxh5 {[%clk 0:00:09]}  gxh5 {[%clk 0:00:10]} 47. Nc3 {[%clk 0:00:06]}  Nxf4 {[%clk 0:00:08]} 48. Rf2 {[%clk 0:00:06]}  Ke5 {[%clk 0:00:07]} 49. Rxf4 {[%clk 0:00:06]}  Rxc3 {[%clk 0:00:06]} 50. Rxf7 {[%clk 0:00:05]}  Rxh3 {[%clk 0:00:06]} 51. Kc4 {[%clk 0:00:03]}  h4 {[%clk 0:00:04]} 52. b4 {[%clk 0:00:03]}  Rh1 {[%clk 0:00:02]} 53. Kc5 {[%clk 0:00:03]}  h3 {[%clk 0:00:02]} 54. Rh7 {[%clk 0:00:03]}  Rc1+ {[%clk 0:00:02]} 55. Kb6 {[%clk 0:00:04]}  Rc3 {[%clk 0:00:03]} 56. b5 {[%clk 0:00:04]}  Kf4 {[%clk 0:00:03]} 57. Ka7 {[%clk 0:00:03]}  Kg4 {[%clk 0:00:04]} 58. b6 {[%clk 0:00:04]}  Rc5 {[%clk 0:00:04]} 59. b7 {[%clk 0:00:03]}  Ra5+ {[%clk 0:00:04]} 60. Kb6 {[%clk 0:00:03]}  Ra1 {[%clk 0:00:05]} 61. b8=Q {[%clk 0:00:03]}  Rb1+ {[%clk 0:00:05]} 62. Kc7 {[%clk 0:00:04]}  Rxb8 {[%clk 0:00:06]} 63. Kxb8 {[%clk 0:00:05]}  Kg3 {[%clk 0:00:06]} 64. Kc7 {[%clk 0:00:05]}  h2 {[%clk 0:00:07]} 65. Rg7+ {[%clk 0:00:06]}  Kf2 {[%clk 0:00:07]} 66. Rh7 {[%clk 0:00:06]}  Kg1 {[%clk 0:00:07]} 67. Rg7+ {[%clk 0:00:07]}  Kf1 {[%clk 0:00:08]} 68. Rf7+ {[%clk 0:00:07]}  Kg1 {[%clk 0:00:08]} 69. Rh7 {[%clk 0:00:07]}  h1=R {[%clk 0:00:05]} 70. Rxh1+ {[%clk 0:00:08]}  Kxh1 {[%clk 0:00:06]} 1/2-1/2


[Site "https://www.chess.com"]

[Event "Titled Tuesday Blitz January 31 Early 2023"]
[White "Torres Dominguez, David"]
[Black "Senthil, Maran K"]
[WhiteFideId "2220857"]
[BlackFideId "25035681"]
[WhiteElo "1994"]
[BlackElo "2209"]
[Result "0-1"]
[Round "07"]
[TimeControl "180+2"]
[Date "2023.01.31"]
[WhiteClock "0:01:36"]
[BlackClock "0:01:31"]

1. e4 {[%clk 0:02:47]}  c5 {[%clk 0:02:54]} 2. Nc3 {[%clk 0:02:46]}  g6 {[%clk 0:02:54]} 3. f4 {[%clk 0:02:46]}  Bg7 {[%clk 0:02:54]} 4. Nf3 {[%clk 0:02:46]}  Nc6 {[%clk 0:02:55]} 5. a4 {[%clk 0:02:45]}  e6 {[%clk 0:02:52]} 6. d4 {[%clk 0:02:45]}  cxd4 {[%clk 0:02:44]} 7. Nb5 {[%clk 0:02:45]}  d5 {[%clk 0:02:37]} 8. e5 {[%clk 0:02:45]}  Bf8 {[%clk 0:02:37]} 9. Bd3 {[%clk 0:02:40]}  a6 {[%clk 0:02:37]} 10. Nbxd4 {[%clk 0:02:39]}  Qb6 {[%clk 0:02:33]} 11. c3 {[%clk 0:02:36]}  Be7 {[%clk 0:02:28]} 12. O-O {[%clk 0:02:34]}  Nh6 {[%clk 0:02:28]} 13. Be3 {[%clk 0:02:17]}  Qxb2 {[%clk 0:02:21]} 14. Qe1 {[%clk 0:02:12]}  Ng4 {[%clk 0:01:45]} 15. Rb1 {[%clk 0:02:05]}  Qa2 {[%clk 0:01:41]} 16. Nxc6 {[%clk 0:01:40]}  Nxe3 {[%clk 0:01:32]} 17. Nxe7 {[%clk 0:01:36]}  Qxg2# {[%clk 0:01:31]} 0-1


[Site "https://www.chess.com"]